bitfinex-derivatives/quotes_ETHF0:USTF0_20250427
["timestamp","ask_amount","ask_price","bid_price","bid_amount"]
[1745729127715,1.1405,1804.0,1803.8,5.11921]
[1745729127914,2.82483,1804.0,1803.8,5.11921]
[1745729128112,2.82483,1804.0,1803.8,8.84121]
[1745729128316,2.82482,1804.0,1803.8,8.84118]
[1745729128618,1.10835,1803.9,1803.8,8.84118]
[1745729128914,1.10835,1803.9,1803.8,7.7328]
[1745729130111,1.10835,1803.9,1803.8,3.722]
[1745729130410,6.10835,1803.9,1803.8,3.722]
[1745729130717,1.10835,1803.9,1803.8,3.722]
[1745729131217,1.7165,1804.0,1803.7,3.2078]
[1745729131218,1.10841,1803.8,1803.7,6.9298]
[1745729131405,3.50771,1803.8,1803.7,6.9298]
[1745729134122,3.50771,1803.8,1803.7,3.2078]
[1745729136128,3.50771,1803.8,1803.7,6.9298]
[1745729138025,3.50771,1803.8,1803.7,3.722]
[1745729138230,1.10847,1803.7,1803.6,3.2078]
[1745729138527,3.67877,1803.7,1803.6,3.2078]
[1745729139030,1.10859,1803.5,1803.4,4.0656]
[1745729139931,1.96159,1803.5,1803.4,4.0656]
[1745729140126,1.96159,1803.5,1803.4,9.4535]
[1745729140429,1.96159,1803.5,1803.4,6.9298]
[1745729141034,1.96159,1803.5,1803.4,8.5957]
[1745729142833,1.10859,1803.5,1803.4,8.5957]
[1745729150637,1.10858,1803.6,1803.4,8.5957]
[1745729150842,1.10858,1803.6,1803.5,2.3982]
[1745729152145,1.10858,1803.6,1803.5,6.1202]
[1745729152337,2.83058,1803.6,1803.5,3.722]
[1745729156242,1.10859,1803.5,1803.4,3.2078]
[1745729156445,2.77109,1803.5,1803.4,3.2078]
[1745729157037,2.77109,1803.5,1803.4,6.9298]
[1745729158146,2.77109,1803.5,1803.4,8.5655]
[1745729158342,1.10858,1803.6,1803.4,8.5655]
[1745729158544,1.10858,1803.6,1803.5,2.5002]
[1745729159149,1.10858,1803.6,1803.5,6.2222]
[1745729165450,2.75328,1803.6,1803.5,3.722]
[1745729166143,1.10859,1803.5,1803.4,3.2078]
[1745729166441,2.84209,1803.5,1803.4,3.2078]
[1745729167045,2.84209,1803.5,1803.4,8.5187]
[1745729168248,1.10859,1803.5,1803.4,8.5187]
[1745729173856,2.83431,1803.7,1803.4,8.5187]
[1745729174056,2.83431,1803.7,1803.5,2.4505]
[1745729174353,2.83431,1803.7,1803.6,1.6542]
[1745729174554,2.83431,1803.7,1803.6,2.484]
[1745729174956,1.7258,1803.7,1803.6,2.484]
[1745729176157,4.8765,1803.9,1803.6,2.484]
[1745729176355,1.10841,1803.8,1803.7,1.7304]
[1745729178054,5.98489,1803.9,1803.7,5.4524]
[1745729178357,2.70741,1803.8,1803.7,5.4524]
[1745729178557,1.599,1803.8,1803.7,5.4524]
[1745729179256,0.8478,1803.9,1803.7,6.56085]
[1745729179458,1.10833,1804.0,1803.8,1.6002]
[1745729179660,2.81263,1804.0,1803.8,2.4593]
[1745729180259,2.81263,1804.0,1803.8,6.1813]
[1745729181059,1.7043,1803.9,1803.8,6.1813]
[1745729181560,1.7043,1803.9,1803.8,7.28971]
[1745729182661,1.7043,1803.9,1803.8,6.1813]
[1745729183859,2.81265,1803.9,1803.8,6.1813]
[1745729184764,2.81265,1803.9,1803.8,3.722]
[1745729185474,1.7043,1803.9,1803.8,3.722]
[1745729185961,2.81265,1803.9,1803.8,5.4228]
[1745729186161,2.81265,1803.9,1803.8,8.6306]
[1745729186766,1.7043,1803.9,1803.8,8.6306]
[1745729187058,15.53571286,1804.4,1803.8,13.6306]
[1745729187262,1.10825,1804.1,1804.0,3.2078]
[1745729187459,1.6344,1804.2,1804.0,5.7261]
[1745729187460,2.74261,1804.2,1804.0,5.7261]
[1745729187660,2.74261,1804.2,1804.1,1.7008]
[1745729189158,1.10821,1804.2,1804.1,1.7008]
[1745729191868,2.4538,1804.3,1804.1,1.7008]
[1745729192068,2.4538,1804.3,1804.2,0.8059]
[1745729192269,3.5619,1804.3,1804.2,0.8059]
[1745729192468,1.10816,1804.2,1804.0,7.7473]
[1745729192670,2.4223,1804.2,1804.0,10.2293]
[1745729193467,1.5976,1804.1,1804.0,10.2293]
[1745729194474,1.5976,1804.1,1804.0,11.33759]
[1745729194662,0.8247,1804.2,1804.0,11.33759]
[1745729194865,1.10823,1804.1,1804.0,3.722]
[1745729195170,1.10842,1803.8,1803.6,2.4867]
[1745729195372,1.10842,1803.8,1803.7,3.2078]
[1745729195971,2.7212,1803.9,1803.7,3.2078]
[1745729196171,1.6674,1803.8,1803.7,6.9298]
[1745729196874,1.10824,1804.1,1803.8,1.10838]
[1745729197067,1.10824,1804.1,1803.8,10.87598]
[1745729197267,2.80374,1804.1,1803.9,0.8492]
[1745729197467,2.80374,1804.1,1803.9,2.4154]
[1745729197872,2.80374,1804.1,1803.9,3.52374]
[1745729198071,2.80374,1804.1,1803.9,7.24574]
[1745729198776,4.8809,1804.2,1804.0,1.10823]
[1745729198975,2.78131,1804.2,1804.0,1.5662]
[1745729199180,1.6955,1804.1,1804.0,5.2882]
[1745729199380,1.6955,1804.1,1804.0,6.39649]
[1745729200282,1.6955,1804.1,1804.0,5.2882]
[1745729200582,1.6955,1804.1,1804.0,6.39649]
[1745729201783,0.8306,1804.2,1804.1,1.10823]
[1745729201985,3.633,1804.5,1804.2,1.10815]
[1745729201986,2.5091,1804.4,1804.2,1.10815]
[1745729202182,3.3158,1804.4,1804.3,1.1081]
[1745729202482,3.3158,1804.4,1804.3,4.3159]
[1745729202683,2.48,1804.4,1804.3,5.8942]
[1745729202888,0.8358,1804.7,1804.5,1.10797]
[1745729203077,4.48547,1804.7,1804.5,8.03777]
[1745729203477,1.10792,1804.6,1804.5,7.7885]
[1745729203679,2.84302,1804.6,1804.5,9.4455]
[1745729206093,2.84302,1804.6,1804.5,6.2377]
[1745729206593,2.84302,1804.6,1804.5,5.379]
[1745729206894,2.84302,1804.6,1804.5,3.722]
[1745729207084,1.10798,1804.5,1804.4,3.722]
[1745729207284,2.76518,1804.5,1804.4,3.722]
[1745729213998,2.76518,1804.5,1804.4,5.2919]
[1745729221104,1.10798,1804.5,1804.4,5.2919]
[1745729228206,1.10798,1804.5,1804.4,3.722]
[1745729232706,1.10816,1804.2,1804.1,3.2078]
[1745729233505,1.10816,1804.2,1804.1,4.8493]
[1745729235612,0.0088,1804.3,1804.1,4.8493]
[1745729235814,0.0088,1804.3,1804.2,2.4351]
[1745729236113,1.1169,1804.3,1804.2,2.4351]
[1745729236309,1.1169,1804.3,1804.2,6.1571]
[1745729236500,1.1169,1804.3,1804.2,11.1571]
[1745729236501,0.0088,1804.3,1804.2,11.1571]
[1745729237304,1.1169,1804.3,1804.2,11.1571]
[1745729237617,0.0088,1804.3,1804.2,12.26526]
[1745729237807,1.1169,1804.3,1804.2,11.1571]
[1745729238616,1.10796,1804.6,1804.3,1.10805]
[1745729238917,1.10796,1804.6,1804.5,3.2078]
[1745729239119,1.10796,1804.6,1804.5,6.9298]
[1745729239318,1.10796,1804.6,1804.5,9.4141]
[1745729240018,1.10788,1804.7,1804.5,9.4141]
[1745729240220,1.10788,1804.7,1804.6,1.5956]
[1745729243813,1.6817,1804.8,1804.6,1.5956]
[1745729244022,2.78954,1804.8,1804.6,1.5956]
[1745729245420,1.6817,1804.8,1804.5,7.7721]
[1745729245623,2.7387,1804.7,1804.5,9.4106]
[1745729245821,1.6308,1804.7,1804.5,9.4106]
[1745729246124,2.73866,1804.7,1804.6,1.6385]
[1745729247721,1.6308,1804.7,1804.6,1.6385]
[1745729248014,1.6308,1804.7,1804.6,2.74642]
[1745729248322,2.73865,1804.8,1804.6,1.6385]
[1745729248721,2.73865,1804.8,1804.6,2.74639]
[1745729249119,1.10792,1804.6,1804.5,6.9298]
[1745729249319,1.10792,1804.6,1804.5,3.722]
[1745729249514,6.10792,1804.6,1804.5,3.722]
[1745729249716,9.48992,1804.6,1804.5,3.722]
[1745729249914,4.48992,1804.6,1804.5,3.722]
[1745729250223,1.10806,1804.4,1804.2,4.8176]
[1745729250622,1.7021,1804.3,1804.2,4.8176]
[1745729251221,1.7021,1804.3,1804.2,8.5396]
[1745729251518,1.7021,1804.3,1804.2,9.64776]
[1745729251921,1.7021,1804.3,1804.2,8.5396]
[1745729252824,1.6799,1804.6,1804.2,9.64774]
[1745729253020,1.10806,1804.4,1804.3,1.6524]
[1745729253323,1.1081,1804.3,1804.2,6.9298]
[1745729253525,1.1081,1804.3,1804.2,8.5822]
[1745729253720,1.1081,1804.4,1804.2,8.5822]
[1745729253923,1.1081,1804.4,1804.2,9.69035]
[1745729254218,1.1081,1804.4,1804.3,1.6524]
[1745729255223,1.1081,1804.4,1804.3,5.3744]
[1745729262719,1.1081,1804.4,1804.3,3.722]
[1745729263425,1.1081,1804.3,1804.2,4.8774]
[1745729263625,2.7116,1804.3,1804.2,4.8774]
[1745729263826,4.355,1804.3,1804.2,4.8774]
[1745729264030,4.355,1804.3,1804.2,3.2078]
[1745729266831,1.10823,1804.1,1804.0,3.2435]
[1745729267031,1.10823,1804.1,1804.0,6.4513]
[1745729267232,1.10823,1804.1,1804.0,10.1733]
[1745729269438,1.10823,1804.1,1804.0,6.9298]
[1745729270237,1.10823,1804.1,1804.0,3.2078]
[1745729272235,1.10823,1804.1,1804.0,6.9298]
[1745729272835,1.10821,1804.2,1804.0,8.6546]
[1745729273031,1.10821,1804.2,1804.1,1.7022]
[1745729276138,2.71321,1804.2,1804.1,1.7022]
[1745729277042,1.10823,1804.1,1804.0,6.9298]
[1745729277340,3.52353,1804.1,1804.0,6.9298]
[1745729278241,3.52353,1804.1,1804.0,3.2078]
[1745729284256,2.4153,1804.1,1804.0,3.2078]
[1745729284457,3.631,1804.2,1804.0,3.2078]
[1745729284752,3.63054,1804.3,1804.1,2.5078]
[1745729285052,3.63054,1804.3,1804.2,2.4982]
[1745729285555,2.5224,1804.3,1804.2,2.4982]
[1745729285745,6.55102044,1804.4,1804.2,2.4982]
[1745729285946,8.16132044,1804.4,1804.3,1.6093]
[1745729286147,6.74082044,1804.4,1804.3,1.6093]
[1745729286445,3.21164044,1804.4,1804.3,1.6093]
[1745729286654,0.00384044,1804.4,1804.3,1.6093]
[1745729286857,1.11188044,1804.4,1804.3,1.6093]
[1745729287151,1.11188044,1804.4,1804.3,5.3313]
[1745729289859,0.00384044,1804.4,1804.3,11.4394]
[1745729290853,1.11188044,1804.4,1804.3,10.3313]
[1745729291357,1.11188044,1804.4,1804.3,5.3313]
[1745729291857,1.11188044,1804.4,1804.3,8.5391]
[1745729293955,0.00384044,1804.4,1804.3,8.5391]
[1745729296966,1.11188044,1804.4,1804.3,6.9298]
[1745729297266,2.83498044,1804.4,1804.3,3.2078]
[1745729297860,1.10816,1804.2,1804.1,1.6132]
[1745729298070,1.10816,1804.2,1804.0,4.0712]
[1745729298265,1.6411,1804.1,1804.0,9.4064]
[1745729298776,1.6411,1804.1,1804.0,10.51469]
[1745729298963,1.6411,1804.1,1804.0,9.4064]
[1745729301278,1.6411,1804.1,1804.0,10.51469]
[1745729301671,2.77376,1804.3,1804.0,10.51469]
[1745729301874,4.38746,1804.3,1804.1,3.62992]
[1745729302375,1.10816,1804.2,1804.1,2.5217]
[1745729302673,1.6137,1804.2,1804.0,7.7932]
[1745729302870,2.72189,1804.2,1804.0,9.5275]
[1745729303072,2.72189,1804.2,1804.0,10.63578]
[1745729303273,2.72189,1804.2,1804.0,11.41938]
[1745729303480,1.6137,1804.2,1804.0,11.41938]
[1745729303667,1.6137,1804.2,1804.1,1.5825]
[1745729304975,2.67864044,1804.4,1804.1,1.5825]
[1745729305175,1.1081,1804.3,1804.1,1.5825]
[1745729305377,1.1081,1804.3,1804.0,0.91925]
[1745729305378,1.10823,1804.1,1804.0,0.91925]
[1745729305675,1.10823,1804.1,1803.1,0.45287826]
[1745729305676,1.10862,1803.5,1803.3,1.5825]
[1745729306178,1.1086,1803.5,1803.3,5.3045]
[1745729306579,1.1086,1803.5,1803.4,1.6742]
[1745729307178,1.1086,1803.5,1803.4,5.3962]
[1745729309873,2.7339,1803.5,1803.4,5.3962]
[1745729311781,2.7339,1803.5,1803.4,3.722]
[1745729312573,3.5208,1803.5,1803.4,3.722]
[1745729319087,2.7339,1803.5,1803.4,3.722]
[1745729321389,1.1086,1803.5,1803.4,3.722]
[1745729321582,1.1086,1803.5,1803.4,6.9298]
[1745729325190,1.1086,1803.5,1803.4,8.5623]
[1745729325580,1.1086,1803.5,1803.4,13.5623]
[1745729325781,1.10859,1803.5,1803.4,13.5623]
[1745729326489,1.10859,1803.5,1803.4,9.67096]
[1745729326691,1.10858,1803.6,1803.4,9.67096]
[1745729326989,1.10858,1803.6,1803.5,3.215]
[1745729328188,1.10858,1803.6,1803.5,6.937]
[1745729328891,1.10851,1803.7,1803.5,8.04558]
[1745729329193,1.10839,1803.9,1803.7,1.10847]
[1745729329387,1.10839,1803.9,1803.8,6.4815]
[1745729329589,1.10835,1803.9,1803.8,7.58991]
[1745729329989,2.6905,1804.2,1803.8,7.58991]
[1745729330189,2.6905,1804.2,1804.0,3.2078]
[1745729330389,2.6905,1804.2,1804.1,3.2977]
[1745729330991,1.5823,1804.2,1803.8,10.5608]
[1745729331188,1.10829,1804.0,1803.9,1.7201]
[1745729331494,1.10835,1803.9,1803.8,10.5608]
[1745729332296,2.75265,1803.9,1803.8,6.9298]
[1745729332694,2.75265,1803.9,1803.8,3.722]
[1745729334296,1.6443,1803.9,1803.8,3.722]
[1745729334594,2.75265,1803.9,1803.8,3.722]
[1745729337194,2.75265,1803.9,1803.8,5.3021]
[1745729339194,2.75265,1803.9,1803.8,3.722]
[1745729341199,7.75265,1803.9,1803.8,3.722]
[1745729342291,1.10859,1803.6,1803.4,6.02635]
[1745729342494,0.8481,1803.5,1803.4,6.02635]
[1745729342791,2.462,1803.5,1803.4,6.02635]
[1745729342998,3.57059,1803.5,1803.4,4.9177]
[1745729343312,15.40939,1803.5,1803.4,3.722]
[1745729344192,15.40939,1803.5,1802.8,5.7368]
[1745729344193,1.10889,1803.1,1802.8,4.9369]
[1745729344392,17.07241,1803.5,1802.8,4.9369]
[1745729344393,1.957,1803.0,1802.8,4.9369]
[1745729344598,1.6718,1802.9,1802.8,6.04593]
[1745729345202,1.6718,1802.9,1802.8,9.76793]
[1745729345393,1.6718,1802.9,1802.8,8.6589]
[1745729345702,2.78076,1802.9,1802.8,8.6589]
[1745729346202,2.78076,1802.9,1802.8,6.9298]
[1745729348400,2.78076,1802.9,1802.8,8.5104]
[1745729349500,2.78076,1802.9,1802.8,6.9298]
[1745729350302,2.78076,1802.9,1802.8,3.722]
[1745729351300,2.78076,1802.9,1802.6,1.6108]
[1745729351301,1.10909,1802.7,1802.6,1.6108]
[1745729352101,2.73649,1802.7,1802.6,1.6108]
[1745729357797,1.10915,1802.6,1802.5,2.06255]
[1745729358012,1.10952,1802.0,1801.9,3.2078]
[1745729361902,1.10958,1801.9,1801.8,1.575]
[1745729362111,1.10958,1801.9,1801.8,4.7828]
[1745729362607,1.10958,1801.9,1801.8,3.2078]
[1745729363104,1.10964,1801.8,1801.7,1.6256]
[1745729363306,2.77244,1801.8,1801.7,1.6256]
[1745729363909,1.6628,1801.8,1801.7,1.6256]
[1745729364397,2.77426,1801.7,1801.0,0.0966083]
[1745729364596,4.8224,1801.6,1801.0,2.5141]
[1745729364807,2.72445,1801.5,1801.1,5.96595]
[1745729365005,2.72445,1801.5,1801.2,1.6481]
[1745729365303,1.6146,1801.4,1801.2,2.4835]
[1745729365607,1.6146,1801.4,1801.3,1.6481]
[1745729365907,2.72449,1801.4,1801.3,1.6481]
[1745729366117,6.44649,1801.4,1801.3,1.6481]
[1745729367408,3.722,1801.4,1801.3,10.96585]
[1745729367601,3.2078,1801.8,1801.6,1.10971]
[1745729367909,4.31744,1801.8,1801.7,2.478]
[1745729368903,1.10941,1802.2,1801.7,10.6858]
[1745729369107,1.10941,1802.2,1801.9,4.31734]
[1745729369307,1.10941,1802.2,1802.0,1.6356]
[1745729369607,1.10941,1802.2,1802.0,2.4807]
[1745729369912,6.35108,1802.3,1802.0,3.59016]
[1745729370112,6.35108,1802.3,1802.1,2.4206]
[1745729370408,1.10946,1802.1,1802.0,0.8451]
[1745729370913,1.10952,1802.0,1801.9,4.9318]
[1745729371307,1.10952,1802.0,1801.9,3.2078]
[1745729371507,2.68552,1802.0,1801.9,3.2078]
[1745729371809,7.68552,1802.0,1801.9,3.2078]
[1745729372010,1.10976,1801.6,1801.5,0.785]
[1745729373914,1.10971,1801.7,1801.5,0.785]
[1745729374215,1.10968,1801.8,1801.5,0.785]
[1745729374514,2.77032,1801.7,1801.5,0.785]
[1745729374716,1.6606,1801.6,1801.5,0.785]
[1745729375607,2.77036,1801.6,1801.3,8.79682]
[1745729375801,3.56366,1801.6,1801.3,8.79682]
[1745729376001,1.6606,1801.5,1801.3,8.7968]
[1745729376202,1.6606,1801.5,1801.4,1.10989]
[1745729377112,1.6606,1801.5,1801.3,8.79681]
[1745729377604,1.6606,1801.5,1801.4,1.10989]
[1745729378807,1.6606,1801.5,1801.3,8.79682]
[1745729379012,1.6606,1801.5,1801.4,1.10989]
[1745729379716,1.6606,1801.5,1801.3,7.6869]
[1745729379914,1.6606,1801.5,1801.4,1.10989]
[1745729385320,1.6606,1801.5,1801.4,2.75439]
[1745729385622,3.2078,1801.8,1801.7,1.1097]
[1745729385816,4.7933,1801.8,1801.7,1.1097]
[1745729386119,5.6436,1802.0,1801.9,1.10958]
[1745729386514,5.6436,1802.0,1801.8,1.1096]
[1745729386818,5.6436,1802.0,1801.6,3.635]
[1745729386819,1.10964,1801.8,1801.6,4.74472]
[1745729387120,1.5855,1801.7,1801.6,4.74472]
[1745729387515,1.5855,1801.7,1801.6,1.10972]
[1745729387716,1.5855,1801.7,1801.6,1.10976]
[1745729389417,1.5855,1801.7,1801.6,2.74556]
[1745729390220,5.3075,1801.7,1801.6,2.74556]
[1745729391119,1.5855,1801.7,1801.6,2.74556]
[1745729391917,0.8364,1801.9,1801.8,1.10964]
[1745729392216,2.5075,1801.9,1801.8,1.10964]
[1745729392415,2.5075,1801.9,1801.5,4.033]
[1745729392617,2.78077,1801.8,1801.5,2.502]
[1745729392818,1.6711,1801.7,1801.6,1.10971]
[1745729393821,1.6711,1801.7,1801.5,3.61179]
[1745729393822,2.7808,1801.7,1801.5,3.61179]
[1745729394323,1.6711,1801.6,1801.5,3.61179]
[1745729396422,2.78086,1801.6,1801.5,1.10979]
[1745729396619,3.57476,1801.6,1801.4,1.94825]
[1745729396924,1.90366,1801.6,1801.5,1.10983]
[1745729397224,5.62566,1801.6,1801.5,1.10983]
[1745729397625,4.5159,1801.6,1801.5,1.10983]
[1745729398016,5.62566,1801.6,1801.5,1.10983]
[1745729398526,4.5159,1801.6,1801.5,1.10983]
[1745729399024,5.62566,1801.6,1801.4,3.61695]
[1745729399326,0.7962,1801.5,1801.4,1.10985]
[1745729399726,1.10989,1801.4,1801.3,3.2078]
[1745729399920,4.31773,1801.4,1801.2,1.11001]
[1745729400122,4.31773,1801.4,1801.1,3.2383]
[1745729400321,4.31773,1801.4,1801.2,1.6203]
[1745729400629,3.2078,1801.4,1801.3,1.10995]
[1745729400826,4.31771,1801.4,1801.2,2.73027]
[1745729402232,8.03971,1801.4,1801.2,2.73027]
[1745729403233,8.03971,1801.4,1801.3,1.10995]
[1745729403432,6.9298,1801.4,1801.3,2.67765]
[1745729403926,6.9298,1801.4,1801.3,1.5677]
[1745729404132,8.03969,1801.4,1801.3,1.5677]
[1745729405235,4.31769,1801.4,1801.3,1.5677]
[1745729406133,4.31769,1801.4,1801.2,1.10997]
[1745729406529,1.10995,1801.3,1801.1,4.41592]
[1745729406733,1.10995,1801.3,1801.1,3.3059]
[1745729406936,1.10995,1801.3,1801.2,1.6879]
[1745729407236,1.11015,1801.0,1800.8,1.11022]
[1745729407739,1.11026,1800.8,1800.7,7.0077]
[1745729407936,1.11026,1800.8,1800.7,5.2741]
[1745729410134,1.11011,1801.1,1800.7,6.6391]
[1745729410326,1.11007,1801.1,1801.0,1.11013]
[1745729410538,5.91305,1801.2,1801.0,1.11013]
[1745729410738,1.11009,1801.1,1800.9,1.11018]
[1745729411047,1.11013,1801.0,1800.9,1.11018]
[1745729411341,4.803,1801.2,1800.8,1.578]
[1745729411542,5.91304,1801.2,1801.0,1.1101]
[1745729412138,5.91304,1801.2,1800.8,1.578]
[1745729412139,1.11007,1801.1,1800.9,1.11016]
[1745729412343,5.12886,1801.2,1801.0,3.52233]
[1745729412544,5.12886,1801.2,1801.1,2.4471]
[1745729413342,6.80476,1801.2,1801.1,0.8691]
[1745729413544,1.11007,1801.1,1801.0,0.8342]
[1745729413849,1.6759,1801.1,1801.0,1.94433]
[1745729415851,3.2078,1801.4,1801.3,1.10995]
[1745729416852,4.82,1801.4,1801.3,1.10995]
[1745729417054,4.82,1801.4,1801.0,11.399]
[1745729417251,3.2078,1801.2,1801.0,1.11012]
[1745729417451,3.50647,1801.1,1801.0,1.11012]
[1745729417754,1.11013,1801.0,1800.8,0.7868]
[1745729417956,3.58273,1801.0,1800.8,0.7868]
[1745729418159,6.1946,1801.0,1800.9,1.1102]
[1745729419052,7.30473,1801.0,1800.8,3.62372]
[1745729419351,1.6122,1800.9,1800.8,3.62372]
[1745729419552,2.7224,1800.9,1800.7,5.17577]
[1745729419758,0.8639,1800.8,1800.7,4.31807]
[1745729419950,2.4761,1800.8,1800.7,4.31807]
[1745729420258,6.1981,1800.8,1800.7,4.31807]
[1745729421158,2.4761,1800.8,1800.7,4.31807]
[1745729422155,6.1981,1800.8,1800.7,4.31807]
[1745729422356,6.1981,1800.8,1800.7,1.11027]
[1745729422952,6.1981,1800.8,1800.5,3.2078]
[1745729422953,1.11038,1800.6,1800.5,3.2078]
[1745729423160,6.9298,1800.6,1800.2,3.56849321]
[1745729423356,4.31834,1800.4,1800.2,1.47130321]
[1745729423557,3.57077,1800.3,1800.2,0.36069321]
[1745729423958,1.11073,1800.1,1799.9,4.31859]
[1745729424263,3.722,1800.1,1800.0,1.11075]
[1745729424960,3.722,1800.1,1800.0,3.58635]
[1745729425258,4.4346,1800.3,1800.0,6.1976]
[1745729425457,4.4346,1800.3,1800.2,1.11063]
[1745729425655,0.7986,1800.3,1800.2,1.11063]
[1745729425856,6.8438,1800.6,1800.1,2.4356]
[1745729425857,7.9542,1800.6,1800.4,1.1105]
[1745729426057,1.89384,1800.5,1800.3,1.11055]
[1745729426256,3.2078,1800.4,1800.0,1.11073]
[1745729426459,3.2078,1800.4,1799.9,4.31857]
[1745729426659,3.2078,1800.2,1799.9,4.31857]
[1745729426852,1.6076,1800.1,1799.9,4.31857]
[1745729427052,2.71831,1800.1,1799.9,3.2078]
[1745729427256,2.71833,1800.1,1799.9,3.2078]
[1745729427463,1.1108,1800.0,1799.7,1.11089]
[1745729427961,2.71833,1800.1,1799.9,1.11081]
[1745729428162,5.3296,1800.1,1799.9,1.11081]
[1745729428463,5.3296,1800.1,1799.7,1.5878]
[1745729428660,6.44031,1800.1,1799.8,1.11087]
[1745729429562,6.44031,1800.1,1799.9,1.11081]
[1745729429759,5.3296,1800.1,1799.9,1.11081]
[1745729429959,6.44031,1800.1,1799.9,1.11081]
[1745729430165,6.44031,1800.1,1799.8,1.11083]
[1745729430466,5.3296,1800.1,1799.9,1.11081]
[1745729430656,5.3296,1800.1,1800.0,1.11075]
[1745729430861,4.5054,1800.1,1800.0,1.11075]
[1745729431057,0.7834,1800.1,1800.0,1.11075]
[1745729431258,1.4205,1800.3,1800.1,1.11065]
[1745729431457,7.95532,1800.4,1800.2,1.1106]
[1745729431751,6.8448,1800.4,1799.8,4.0472]
[1745729431955,1.11079,1800.0,1799.8,3.2078]
[1745729432158,1.6913,1799.9,1799.8,3.2078]
[1745729432357,2.80211,1799.9,1799.8,3.2078]
[1745729432553,7.80211,1799.9,1799.8,3.2078]
[1745729432865,1.11162,1798.6,1798.5,10.60692488]
[1745729433065,8.43266713,1798.6,1798.5,9.45836488]
[1745729433262,16.70542,1798.6,1798.5,7.48841809]
[1745729433462,16.70542,1798.6,1798.5,3.74481809]
[1745729434355,16.70542,1798.6,1798.5,2.56264809]
[1745729434564,11.70542,1798.6,1798.5,2.56264809]
[1745729435657,6.9298,1798.6,1798.5,2.56264809]
[1745729435856,6.9298,1798.6,1798.5,5.77044809]
[1745729436060,6.9298,1798.6,1798.5,2.56264809]
[1745729436363,11.70642,1798.6,1798.5,2.56264809]
[1745729437169,10.5948,1798.6,1798.3,1.6507]
[1745729437464,3.722,1798.6,1798.5,1.6507]
[1745729437665,3.665,1799.1,1798.9,1.1114]
[1745729437857,5.44479904,1799.2,1799.0,1.6196]
[1745729438161,3.2078,1799.1,1799.0,2.73097]
[1745729438366,7.56320604,1799.5,1799.4,1.11112]
[1745729438568,7.56320604,1799.5,1799.4,13.19292]
[1745729438969,6.45191604,1799.5,1799.4,13.19292]
[1745729439171,6.45191604,1799.5,1799.4,16.91492]
[1745729439364,5.12017604,1799.5,1799.4,16.91492]
[1745729440474,4.31846,1800.2,1799.7,1.11092]
[1745729440772,6.36455205,1800.2,1799.8,3.2078]
[1745729440973,1.11069,1800.1,1799.8,3.2078]
[1745729441168,1.11079,1800.0,1799.8,3.2078]
[1745729441360,1.1108,1800.0,1799.8,3.2078]
[1745729441674,1.1108,1800.0,1799.5,4.985]
[1745729441675,1.11093,1799.8,1799.6,1.5889]
[1745729441866,3.2078,1799.9,1799.6,1.5889]
[1745729442065,6.36474205,1799.9,1799.6,1.5889]
[1745729442266,2.04609205,1799.9,1799.6,2.69987]
[1745729442468,2.04609205,1799.9,1799.7,1.11093]
[1745729442670,2.04609205,1799.9,1799.8,1.5889]
[1745729443373,2.04609205,1799.9,1799.8,2.69977]
[1745729443570,1.6068,1800.0,1799.8,1.5889]
[1745729443873,4.31843,1800.2,1799.9,1.6543]
[1745729444072,1.6663,1800.1,1799.9,1.6543]
[1745729444282,2.77701,1800.1,1799.9,1.6543]
[1745729444477,4.82311205,1800.1,1799.7,4.31873]
[1745729444772,4.82310205,1800.1,1799.8,1.6543]
[1745729445172,1.11076,1800.0,1799.8,1.6543]
[1745729445377,1.6663,1800.0,1799.8,1.6543]
[1745729445577,3.71239205,1800.0,1799.8,1.6543]
[1745729446080,7.43439205,1800.0,1799.8,2.76513]
[1745729446376,7.43439205,1800.0,1799.8,1.6543]
[1745729446577,7.43439205,1800.0,1799.9,1.6543]
[1745729446774,7.43439205,1800.0,1799.7,3.2078]
[1745729446974,1.11084,1799.9,1799.6,1.11096]
[1745729447175,10.08667205,1800.0,1799.7,1.11093]
[1745729447371,8.97589205,1800.0,1799.6,1.11096]
[1745729447572,1.11084,1799.9,1799.6,1.11096]
[1745729447772,1.11084,1799.9,1799.7,1.11093]
[1745729447977,3.15693205,1799.9,1799.7,1.11093]
[1745729448175,1.6854,1799.8,1799.5,1.7087]
[1745729448379,1.6854,1799.8,1799.7,1.11094]
[1745729448680,2.04609205,1799.8,1799.7,1.11094]
[1745729449179,7.45349205,1799.8,1799.5,1.7087]
[1745729449379,7.45349205,1799.8,1799.6,1.11096]
[1745729449684,7.45349205,1799.8,1799.6,1.111]
[1745729449875,7.45349205,1799.8,1799.5,1.7087]
[1745729450070,7.45349205,1799.8,1799.6,1.111]
[1745729450271,7.45349205,1799.8,1799.7,1.5723]
[1745729450473,8.56436205,1799.8,1799.7,1.5723]
[1745729451075,10.66129205,1799.8,1799.4,4.31888]
[1745729451272,1.11106,1799.5,1799.4,4.7801]
[1745729451472,1.11104,1799.6,1799.4,5.89121]
[1745729451673,1.6292,1799.5,1799.4,5.89121]
[1745729452073,7.39729205,1799.5,1799.4,5.89121]
[1745729453079,5.76809205,1799.5,1799.4,5.89121]
[1745729453978,3.722,1799.5,1799.4,5.89121]